[Event "Titled Tuesday Blitz March 08 Early 2022"]
[White "Mohammed, Dilshad"]
[Black "Necula, Iulian"]
[WhiteFideId "5050421"]
[BlackFideId "1232380"]
[WhiteElo "2109"]
[BlackElo "1776"]
[Result "1-0"]
[Round "02"]
[TimeControl "180+1"]
[Date "2022.03.09"]
[WhiteClock "0:01:21"]
[BlackClock "0:00:16"]

1. Nf3 {[%clk 0:02:57]}  d6 {[%clk 0:02:59]} 2. c4 {[%clk 0:02:56]}  f5 {[%clk 0:02:58]} 3. Nc3 {[%clk 0:02:56]}  Nf6 {[%clk 0:02:58]} 4. g3 {[%clk 0:02:51]}  g6 {[%clk 0:02:58]} 5. Bg2 {[%clk 0:02:52]}  Bg7 {[%clk 0:02:59]} 6. O-O {[%clk 0:02:52]}  O-O {[%clk 0:03:00]} 7. d4 {[%clk 0:02:52]}  c6 {[%clk 0:03:01]} 8. d5 {[%clk 0:02:48]}  Na6 {[%clk 0:02:59]} 9. dxc6 {[%clk 0:02:47]}  bxc6 {[%clk 0:02:59]} 10. Nd4 {[%clk 0:02:47]}  Bd7 {[%clk 0:02:29]} 11. Nxc6 {[%clk 0:02:46]}  Bxc6 {[%clk 0:02:29]} 12. Bxc6 {[%clk 0:02:47]}  Rb8 {[%clk 0:02:28]} 13. Bg2 {[%clk 0:02:43]}  Nc5 {[%clk 0:02:21]} 14. Qc2 {[%clk 0:02:39]}  Rc8 {[%clk 0:02:05]} 15. Be3 {[%clk 0:02:26]}  Qc7 {[%clk 0:02:01]} 16. Rad1 {[%clk 0:02:24]}  h6 {[%clk 0:01:58]} 17. b3 {[%clk 0:02:22]}  a5 {[%clk 0:01:56]} 18. Nd5 {[%clk 0:02:20]}  Nxd5 {[%clk 0:01:54]} 19. Bxd5+ {[%clk 0:02:21]}  Kh7 {[%clk 0:01:54]} 20. Bxc5 {[%clk 0:02:18]}  Qxc5 {[%clk 0:01:53]} 21. Be6 {[%clk 0:02:14]}  Rb8 {[%clk 0:01:49]} 22. Rd5 {[%clk 0:02:14]}  Qb6 {[%clk 0:01:34]} 23. h4 {[%clk 0:02:12]}  h5 {[%clk 0:01:25]} 24. e3 {[%clk 0:02:05]}  Be5 {[%clk 0:01:20]} 25. c5 {[%clk 0:02:01]}  Qc7 {[%clk 0:01:11]} 26. c6 {[%clk 0:01:59]}  Rb6 {[%clk 0:01:09]} 27. Bd7 {[%clk 0:01:58]}  a4 {[%clk 0:01:08]} 28. f4 {[%clk 0:01:55]}  axb3 {[%clk 0:01:06]} 29. axb3 {[%clk 0:01:55]}  Bf6 {[%clk 0:01:05]} 30. e4 {[%clk 0:01:47]}  e6 {[%clk 0:00:46]} 31. Rdd1 {[%clk 0:01:39]}  fxe4 {[%clk 0:00:23]} 32. Qxe4 {[%clk 0:01:40]}  Rxb3 {[%clk 0:00:19]} 33. Bxe6 {[%clk 0:01:32]}  Qb6+ {[%clk 0:00:18]} 34. Kg2 {[%clk 0:01:30]}  Rb2+ {[%clk 0:00:19]} 35. Kh3 {[%clk 0:01:28]}  Bg7 {[%clk 0:00:14]} 36. f5 {[%clk 0:01:27]}  g5 {[%clk 0:00:13]} 37. f6+ {[%clk 0:01:26]}  Kh8 {[%clk 0:00:13]} 38. fxg7+ {[%clk 0:01:26]}  Kxg7 {[%clk 0:00:13]} 39. Rxf8 {[%clk 0:01:22]}  Kxf8 {[%clk 0:00:14]} 40. Qf5+ {[%clk 0:01:22]}  Ke7 {[%clk 0:00:15]} 41. Qf7+ {[%clk 0:01:21]}  Kd8 {[%clk 0:00:16]} 42. Qd7# {[%clk 0:01:21]} 1-0


[Site "https://www.chess.com"]

[Event "Titled Tuesday Blitz March 08 Early 2022"]
[White "Msellek, Ilyass"]
[Black "Durarbayli, Vasif"]
[WhiteFideId "675938"]
[BlackFideId "13402935"]
[WhiteElo "2219"]
[BlackElo "2528"]
[Result "0-1"]
[Round "02"]
[TimeControl "180+1"]
[Date "2022.03.08"]
[WhiteClock "0:00:07"]
[BlackClock "0:00:45"]

1. e4 {[%clk 0:02:59]}  c5 {[%clk 0:03:00]} 2. Nf3 {[%clk 0:02:57]}  e6 {[%clk 0:03:00]} 3. d4 {[%clk 0:02:54]}  cxd4 {[%clk 0:03:01]} 4. Nxd4 {[%clk 0:02:55]}  Nf6 {[%clk 0:03:02]} 5. Nc3 {[%clk 0:02:55]}  d6 {[%clk 0:03:02]} 6. Be2 {[%clk 0:02:49]}  Be7 {[%clk 0:03:00]} 7. O-O {[%clk 0:02:47]}  O-O {[%clk 0:03:00]} 8. Be3 {[%clk 0:02:48]}  Nc6 {[%clk 0:03:00]} 9. f4 {[%clk 0:02:48]}  e5 {[%clk 0:03:00]} 10. Nxc6 {[%clk 0:02:43]}  bxc6 {[%clk 0:03:01]} 11. Qe1 {[%clk 0:02:42]}  exf4 {[%clk 0:02:59]} 12. Bxf4 {[%clk 0:02:35]}  Qb6+ {[%clk 0:02:32]} 13. Kh1 {[%clk 0:02:35]}  Qxb2 {[%clk 0:02:32]} 14. e5 {[%clk 0:02:29]}  dxe5 {[%clk 0:01:54]} 15. Bxe5 {[%clk 0:02:30]}  Qxc2 {[%clk 0:01:53]} 16. Rc1 {[%clk 0:00:55]}  Qg6 {[%clk 0:01:50]} 17. Rf3 {[%clk 0:00:56]}  Ng4 {[%clk 0:01:12]} 18. Bd3 {[%clk 0:00:43]}  f5 {[%clk 0:01:11]} 19. Bc4+ {[%clk 0:00:13]}  Be6 {[%clk 0:01:09]} 20. Bd4 {[%clk 0:00:06]}  Bxc4 {[%clk 0:01:02]} 21. Qxe7 {[%clk 0:00:07]}  Qh6 {[%clk 0:00:45]} 0-1


[Site "https://www.chess.com"]

[Event "Titled Tuesday Blitz March 08 Early 2022"]
[White "Muradov, Soltan"]
[Black "Balaji, Aaravamudhan"]
[WhiteFideId "14002108"]
[BlackFideId "436224"]
[WhiteElo "1854"]
[BlackElo "2085"]
[Result "1-0"]
[Round "02"]
[TimeControl "180+1"]
[Date "2022.03.09"]
[WhiteClock "0:00:06"]
[BlackClock "0:00:40"]

1. d4 {[%clk 0:02:58]}  g6 {[%clk 0:03:00]} 2. Nf3 {[%clk 0:02:58]}  Bg7 {[%clk 0:03:01]} 3. Bf4 {[%clk 0:02:59]}  d6 {[%clk 0:03:01]} 4. e3 {[%clk 0:02:59]}  Nd7 {[%clk 0:03:01]} 5. Be2 {[%clk 0:02:59]}  Ngf6 {[%clk 0:03:02]} 6. h3 {[%clk 0:02:59]}  O-O {[%clk 0:03:03]} 7. Nc3 {[%clk 0:02:59]}  Nb6 {[%clk 0:03:00]} 8. O-O {[%clk 0:02:58]}  Nbd5 {[%clk 0:03:00]} 9. Nxd5 {[%clk 0:02:57]}  Nxd5 {[%clk 0:03:01]} 10. Bg3 {[%clk 0:02:57]}  Nb6 {[%clk 0:03:02]} 11. c3 {[%clk 0:02:41]}  a5 {[%clk 0:02:57]} 12. Qc2 {[%clk 0:02:36]}  a4 {[%clk 0:02:52]} 13. Rad1 {[%clk 0:02:36]}  a3 {[%clk 0:02:44]} 14. b3 {[%clk 0:02:35]}  Bf5 {[%clk 0:02:37]} 15. e4 {[%clk 0:02:30]}  Bd7 {[%clk 0:02:35]} 16. Rfe1 {[%clk 0:02:06]}  Qe8 {[%clk 0:02:25]} 17. e5 {[%clk 0:02:03]}  dxe5 {[%clk 0:02:19]} 18. Nxe5 {[%clk 0:02:04]}  Bf5 {[%clk 0:02:19]} 19. Qc1 {[%clk 0:01:54]}  Nd7 {[%clk 0:02:16]} 20. Nc4 {[%clk 0:01:42]}  Qd8 {[%clk 0:02:14]} 21. Bf3 {[%clk 0:01:39]}  c6 {[%clk 0:02:08]} 22. Ne3 {[%clk 0:01:13]}  e6 {[%clk 0:01:57]} 23. Bd6 {[%clk 0:01:06]}  Re8 {[%clk 0:01:52]} 24. g4 {[%clk 0:01:06]}  Qg5 {[%clk 0:01:50]} 25. Kf1 {[%clk 0:00:46]}  Bd3+ {[%clk 0:01:51]} 26. Rxd3 {[%clk 0:00:45]}  e5 {[%clk 0:01:52]} 27. dxe5 {[%clk 0:00:41]}  Bxe5 {[%clk 0:01:53]} 28. Nc4 {[%clk 0:00:37]}  Qf6 {[%clk 0:01:33]} 29. Rde3 {[%clk 0:00:20]}  Ra5 {[%clk 0:01:21]} 30. Bxe5 {[%clk 0:00:20]}  Raxe5 {[%clk 0:01:16]} 31. Nxe5 {[%clk 0:00:20]}  Nxe5 {[%clk 0:01:11]} 32. Bg2 {[%clk 0:00:20]}  Re7 {[%clk 0:01:07]} 33. Qxa3 {[%clk 0:00:19]}  Re6 {[%clk 0:01:03]} 34. c4 {[%clk 0:00:18]}  Qf4 {[%clk 0:01:01]} 35. Qb4 {[%clk 0:00:09]}  Rf6 {[%clk 0:00:55]} 36. R1e2 {[%clk 0:00:08]}  Nd7 {[%clk 0:00:40]} 37. Qc3 {[%clk 0:00:07]}  Rd6 {[%clk 0:00:40]} 38. Re8+ {[%clk 0:00:07]}  Nf8 {[%clk 0:00:40]} 39. Rxf8+ {[%clk 0:00:05]}  Kxf8 {[%clk 0:00:40]} 40. Qh8# {[%clk 0:00:06]} 1-0


[Site "https://www.chess.com"]

[Event "Titled Tuesday Blitz March 08 Early 2022"]
[White "Nakamura, Hikaru"]
[Black "Mkrtchyan, Mariam"]
[WhiteFideId "2016192"]
[BlackFideId "13310828"]
[WhiteElo "2850"]
[BlackElo "1984"]
[Result "1-0"]
[Round "02"]
[TimeControl "180+1"]
[Date "2022.03.09"]
[WhiteClock "0:02:08"]
[BlackClock "0:00:13"]

1. Nf3 {[%clk 0:03:00]}  g6 {[%clk 0:02:58]} 2. e4 {[%clk 0:03:00]}  Bg7 {[%clk 0:02:58]} 3. d4 {[%clk 0:02:59]}  c6 {[%clk 0:02:57]} 4. Bd3 {[%clk 0:02:51]}  d5 {[%clk 0:02:56]} 5. e5 {[%clk 0:02:52]}  Bg4 {[%clk 0:02:54]} 6. c3 {[%clk 0:02:51]}  e6 {[%clk 0:02:54]} 7. Nbd2 {[%clk 0:02:51]}  Ne7 {[%clk 0:02:54]} 8. h3 {[%clk 0:02:51]}  Bxf3 {[%clk 0:02:53]} 9. Nxf3 {[%clk 0:02:52]}  Nd7 {[%clk 0:02:52]} 10. b4 {[%clk 0:02:51]}  a5 {[%clk 0:02:49]} 11. O-O {[%clk 0:02:50]}  O-O {[%clk 0:02:43]} 12. Re1 {[%clk 0:02:49]}  Qc7 {[%clk 0:02:33]} 13. Bg5 {[%clk 0:02:47]}  Rfe8 {[%clk 0:02:31]} 14. a3 {[%clk 0:02:44]}  b6 {[%clk 0:02:30]} 15. Qd2 {[%clk 0:02:43]}  c5 {[%clk 0:02:28]} 16. b5 {[%clk 0:02:43]}  a4 {[%clk 0:02:15]} 17. Nh2 {[%clk 0:02:40]}  Rac8 {[%clk 0:01:58]} 18. Ng4 {[%clk 0:02:38]}  Nf5 {[%clk 0:01:51]} 19. Qf4 {[%clk 0:02:33]}  h5 {[%clk 0:01:34]} 20. Bxf5 {[%clk 0:02:29]}  exf5 {[%clk 0:01:29]} 21. Ne3 {[%clk 0:02:28]}  cxd4 {[%clk 0:01:19]} 22. cxd4 {[%clk 0:02:28]}  Qb7 {[%clk 0:01:00]} 23. Qf3 {[%clk 0:02:27]}  Nf8 {[%clk 0:00:49]} 24. Nxd5 {[%clk 0:02:26]}  Kh8 {[%clk 0:00:46]} 25. Bf6 {[%clk 0:02:10]}  Ne6 {[%clk 0:00:45]} 26. Rad1 {[%clk 0:02:10]}  Rc4 {[%clk 0:00:29]} 27. Bxg7+ {[%clk 0:02:09]}  Nxg7 {[%clk 0:00:26]} 28. Nf6 {[%clk 0:02:08]}  Qxf3 {[%clk 0:00:25]} 29. gxf3 {[%clk 0:02:09]}  Rd8 {[%clk 0:00:25]} 30. d5 {[%clk 0:02:09]}  Rc3 {[%clk 0:00:24]} 31. e6 {[%clk 0:02:07]}  fxe6 {[%clk 0:00:22]} 32. dxe6 {[%clk 0:02:08]}  Rxd1 {[%clk 0:00:22]} 33. Rxd1 {[%clk 0:02:09]}  Nxe6 {[%clk 0:00:22]} 34. Rd7 {[%clk 0:02:09]}  Nf8 {[%clk 0:00:20]} 35. Rf7 {[%clk 0:02:09]}  Rc8 {[%clk 0:00:19]} 36. f4 {[%clk 0:02:08]}  Rd8 {[%clk 0:00:18]} 37. Kg2 {[%clk 0:02:09]}  h4 {[%clk 0:00:17]} 38. Kf1 {[%clk 0:02:08]}  Rc8 {[%clk 0:00:17]} 39. Ke2 {[%clk 0:02:09]}  Rd8 {[%clk 0:00:18]} 40. Ke3 {[%clk 0:02:10]}  Rc8 {[%clk 0:00:17]} 41. Kd4 {[%clk 0:02:10]}  Rd8+ {[%clk 0:00:17]} 42. Ke5 {[%clk 0:02:09]}  Rc8 {[%clk 0:00:13]} 43. Kd6 {[%clk 0:02:08]} 1-0


[Site "https://www.chess.com"]

[Event "Titled Tuesday Blitz March 08 Early 2022"]
[White "Nazari, Arad"]
[Black "Bintang, Rasyid A. Hidayat"]
[WhiteFideId "12577324"]
[BlackFideId "7105355"]
[WhiteElo "2120"]
[BlackElo "2379"]
[Result "1-0"]
[Round "02"]
[TimeControl "180+1"]
[Date "2022.03.09"]
[WhiteClock "0:00:53"]
[BlackClock "0:00:25"]

1. e4 {[%clk 0:03:00]}  d5 {[%clk 0:02:57]} 2. exd5 {[%clk 0:03:00]}  Nf6 {[%clk 0:02:57]} 3. Nc3 {[%clk 0:03:00]}  Nxd5 {[%clk 0:02:56]} 4. Bc4 {[%clk 0:03:00]}  Nb6 {[%clk 0:02:56]} 5. Bb3 {[%clk 0:02:59]}  Nc6 {[%clk 0:02:55]} 6. Nge2 {[%clk 0:02:57]}  Bf5 {[%clk 0:02:54]} 7. O-O {[%clk 0:02:55]}  e6 {[%clk 0:02:54]} 8. Ng3 {[%clk 0:02:55]}  Bg6 {[%clk 0:02:53]} 9. d3 {[%clk 0:02:55]}  Be7 {[%clk 0:02:53]} 10. Be3 {[%clk 0:02:50]}  O-O {[%clk 0:02:52]} 11. Nce4 {[%clk 0:02:47]}  Na5 {[%clk 0:02:47]} 12. Qd2 {[%clk 0:02:30]}  Nxb3 {[%clk 0:02:44]} 13. axb3 {[%clk 0:02:29]}  Nd5 {[%clk 0:02:43]} 14. Bc5 {[%clk 0:02:23]}  Bxe4 {[%clk 0:02:32]} 15. Bxe7 {[%clk 0:02:18]}  Qxe7 {[%clk 0:02:33]} 16. dxe4 {[%clk 0:02:18]}  Nf6 {[%clk 0:02:31]} 17. Qg5 {[%clk 0:02:14]}  h6 {[%clk 0:02:26]} 18. Qb5 {[%clk 0:02:12]}  c6 {[%clk 0:02:26]} 19. Qe2 {[%clk 0:02:09]}  Rfd8 {[%clk 0:02:22]} 20. Rfd1 {[%clk 0:02:01]}  Qc5 {[%clk 0:02:17]} 21. c3 {[%clk 0:01:57]}  a6 {[%clk 0:02:16]} 22. b4 {[%clk 0:01:57]}  Qb6 {[%clk 0:02:12]} 23. e5 {[%clk 0:01:57]}  Nd5 {[%clk 0:02:10]} 24. Ne4 {[%clk 0:01:57]}  Qc7 {[%clk 0:02:01]} 25. Nd6 {[%clk 0:01:55]}  f6 {[%clk 0:02:00]} 26. Nc4 {[%clk 0:01:42]}  f5 {[%clk 0:01:54]} 27. Nd6 {[%clk 0:01:39]}  Rd7 {[%clk 0:01:47]} 28. Ra4 {[%clk 0:01:31]}  Nf4 {[%clk 0:01:42]} 29. Qe3 {[%clk 0:01:23]}  g5 {[%clk 0:01:38]} 30. g3 {[%clk 0:01:19]}  Ng6 {[%clk 0:01:37]} 31. c4 {[%clk 0:01:17]}  b5 {[%clk 0:01:19]} 32. cxb5 {[%clk 0:01:11]}  cxb5 {[%clk 0:01:18]} 33. Raa1 {[%clk 0:01:11]}  Ne7 {[%clk 0:01:04]} 34. Rac1 {[%clk 0:01:10]}  Qa7 {[%clk 0:00:57]} 35. Qe2 {[%clk 0:01:10]}  Kg7 {[%clk 0:00:51]} 36. Rc5 {[%clk 0:01:08]}  Nd5 {[%clk 0:00:47]} 37. Rdxd5 {[%clk 0:00:55]}  exd5 {[%clk 0:00:46]} 38. Nxf5+ {[%clk 0:00:56]}  Kh8 {[%clk 0:00:38]} 39. e6 {[%clk 0:00:56]}  Rdd8 {[%clk 0:00:25]} 40. e7 {[%clk 0:00:53]}  Re8 {[%clk 0:00:25]} 41. Qe5+ {[%clk 0:00:53]} 1-0


[Site "https://www.chess.com"]

[Event "Titled Tuesday Blitz March 08 Early 2022"]
[White "Nguyen Hong Nhung"]
[Black "Coelho, Ramyres Santana"]
[WhiteFideId "12412201"]
[BlackFideId "2120690"]
[WhiteElo "1661"]
[BlackElo "1888"]
[Result "1-0"]
[Round "02"]
[TimeControl "180+1"]
[Date "2022.03.09"]
[WhiteClock "0:01:19"]
[BlackClock "0:01:13"]

1. e4 {[%clk 0:03:00]}  c5 {[%clk 0:02:59]} 2. Nc3 {[%clk 0:03:00]}  Nc6 {[%clk 0:02:48]} 3. Bb5 {[%clk 0:02:58]}  Nd4 {[%clk 0:02:46]} 4. Bc4 {[%clk 0:02:57]}  e6 {[%clk 0:02:45]} 5. Nge2 {[%clk 0:02:54]}  a6 {[%clk 0:02:44]} 6. Nxd4 {[%clk 0:02:52]}  cxd4 {[%clk 0:02:45]} 7. Ne2 {[%clk 0:02:52]}  b5 {[%clk 0:02:45]} 8. Bb3 {[%clk 0:02:52]}  Bc5 {[%clk 0:02:44]} 9. d3 {[%clk 0:02:53]}  Nf6 {[%clk 0:02:43]} 10. O-O {[%clk 0:02:53]}  O-O {[%clk 0:02:43]} 11. Ng3 {[%clk 0:02:52]}  d5 {[%clk 0:02:41]} 12. Bg5 {[%clk 0:02:49]}  h6 {[%clk 0:02:40]} 13. Bxf6 {[%clk 0:02:49]}  Qxf6 {[%clk 0:02:36]} 14. exd5 {[%clk 0:02:49]}  exd5 {[%clk 0:02:34]} 15. Bxd5 {[%clk 0:02:50]}  Ra7 {[%clk 0:02:33]} 16. Ne4 {[%clk 0:02:49]}  Qe7 {[%clk 0:02:30]} 17. Nxc5 {[%clk 0:02:48]}  Qxc5 {[%clk 0:02:30]} 18. Bb3 {[%clk 0:02:45]}  Bb7 {[%clk 0:02:27]} 19. Qg4 {[%clk 0:02:43]}  Bc6 {[%clk 0:02:14]} 20. Rac1 {[%clk 0:02:36]}  Re7 {[%clk 0:02:13]} 21. c3 {[%clk 0:02:18]}  Rfe8 {[%clk 0:01:55]} 22. h3 {[%clk 0:01:43]}  dxc3 {[%clk 0:01:48]} 23. bxc3 {[%clk 0:01:42]}  Qd6 {[%clk 0:01:45]} 24. d4 {[%clk 0:01:39]}  Re4 {[%clk 0:01:42]} 25. Qh5 {[%clk 0:01:30]}  a5 {[%clk 0:01:21]} 26. Bxf7+ {[%clk 0:01:27]}  Kh8 {[%clk 0:01:18]} 27. Bxe8 {[%clk 0:01:23]}  Bxe8 {[%clk 0:01:18]} 28. Qf5 {[%clk 0:01:21]}  g6 {[%clk 0:01:15]} 29. Qxe4 {[%clk 0:01:20]}  Bc6 {[%clk 0:01:13]} 30. Qe5+ {[%clk 0:01:19]} 1-0


[Site "https://www.chess.com"]

[Event "Titled Tuesday Blitz March 08 Early 2022"]
[White "Odegov, Artem"]
[Black "Delorme, Alban"]
[WhiteFideId "34183644"]
[BlackFideId "623636"]
[WhiteElo "2286"]
[BlackElo "2197"]
[Result "1-0"]
[Round "02"]
[TimeControl "180+1"]
[Date "2022.03.09"]
[WhiteClock "0:00:56"]
[BlackClock "0:00:49"]

1. d4 {[%clk 0:03:00]}  Nf6 {[%clk 0:03:00]} 2. c4 {[%clk 0:03:00]}  g6 {[%clk 0:03:00]} 3. Nc3 {[%clk 0:02:59]}  Bg7 {[%clk 0:03:00]} 4. e4 {[%clk 0:02:59]}  d6 {[%clk 0:03:01]} 5. h3 {[%clk 0:02:59]}  O-O {[%clk 0:03:01]} 6. Be3 {[%clk 0:02:59]}  c5 {[%clk 0:02:59]} 7. d5 {[%clk 0:02:59]}  Na6 {[%clk 0:02:59]} 8. Bd3 {[%clk 0:02:59]}  Nc7 {[%clk 0:03:00]} 9. Nge2 {[%clk 0:03:00]}  a6 {[%clk 0:03:00]} 10. a4 {[%clk 0:03:00]}  Rb8 {[%clk 0:03:00]} 11. a5 {[%clk 0:02:59]}  e6 {[%clk 0:03:00]} 12. O-O {[%clk 0:02:59]}  exd5 {[%clk 0:03:01]} 13. cxd5 {[%clk 0:03:00]}  Re8 {[%clk 0:03:00]} 14. Qd2 {[%clk 0:03:00]}  Bd7 {[%clk 0:02:58]} 15. Rae1 {[%clk 0:02:59]}  Nb5 {[%clk 0:02:58]} 16. f4 {[%clk 0:02:57]}  Qxa5 {[%clk 0:02:54]} 17. Bf2 {[%clk 0:02:55]}  Nxc3 {[%clk 0:02:42]} 18. Nxc3 {[%clk 0:02:56]}  b5 {[%clk 0:02:41]} 19. Ra1 {[%clk 0:01:56]}  Qb6 {[%clk 0:02:26]} 20. e5 {[%clk 0:01:54]}  b4 {[%clk 0:02:24]} 21. Na4 {[%clk 0:01:48]}  Bxa4 {[%clk 0:02:23]} 22. exf6 {[%clk 0:01:48]}  Bb5 {[%clk 0:02:09]} 23. fxg7 {[%clk 0:01:43]}  Kxg7 {[%clk 0:02:06]} 24. f5 {[%clk 0:01:37]}  Re5 {[%clk 0:01:43]} 25. f6+ {[%clk 0:01:35]}  Kh8 {[%clk 0:01:39]} 26. Bxb5 {[%clk 0:01:31]}  Qxb5 {[%clk 0:01:36]} 27. Qh6 {[%clk 0:01:30]}  Rg8 {[%clk 0:01:35]} 28. Rae1 {[%clk 0:01:29]}  Rh5 {[%clk 0:01:25]} 29. Qd2 {[%clk 0:01:22]}  Qb7 {[%clk 0:01:17]} 30. Re7 {[%clk 0:01:18]}  Rxd5 {[%clk 0:01:13]} 31. Qh6 {[%clk 0:01:14]}  Rh5 {[%clk 0:01:12]} 32. Qxh5 {[%clk 0:01:02]}  Qxe7 {[%clk 0:01:10]} 33. fxe7 {[%clk 0:01:00]}  gxh5 {[%clk 0:01:10]} 34. Bh4 {[%clk 0:01:00]}  Kg7 {[%clk 0:01:06]} 35. Rd1 {[%clk 0:00:57]}  c4 {[%clk 0:00:49]} 36. Rxd6 {[%clk 0:00:55]}  c3 {[%clk 0:00:50]} 37. bxc3 {[%clk 0:00:56]}  bxc3 {[%clk 0:00:50]} 38. Bf6+ {[%clk 0:00:55]}  Kg6 {[%clk 0:00:49]} 39. Bxc3+ {[%clk 0:00:56]}  Kf5 {[%clk 0:00:49]} 40. Rd8 {[%clk 0:00:56]} 1-0


[Site "https://www.chess.com"]

[Event "Titled Tuesday Blitz March 08 Early 2022"]
[White "Oganian, Miran"]
[Black "Vusatiuk, Vladimir"]
[WhiteFideId "4122488"]
[BlackFideId "14118610"]
[WhiteElo "2357"]
[BlackElo "2157"]
[Result "0-1"]
[Round "02"]
[TimeControl "180+1"]
[Date "2022.03.09"]
[WhiteClock "0:00:04"]
[BlackClock "0:00:06"]

1. e4 {[%clk 0:02:59]}  c5 {[%clk 0:02:59]} 2. Nf3 {[%clk 0:02:59]}  d6 {[%clk 0:03:00]} 3. Bb5+ {[%clk 0:02:59]}  Nd7 {[%clk 0:03:00]} 4. d4 {[%clk 0:02:59]}  cxd4 {[%clk 0:02:59]} 5. Qxd4 {[%clk 0:03:00]}  a6 {[%clk 0:02:58]} 6. Bxd7+ {[%clk 0:02:59]}  Bxd7 {[%clk 0:02:58]} 7. c4 {[%clk 0:03:00]}  Bc6 {[%clk 0:02:55]} 8. Nc3 {[%clk 0:02:59]}  Nf6 {[%clk 0:02:48]} 9. Bg5 {[%clk 0:02:59]}  h6 {[%clk 0:02:48]} 10. Bxf6 {[%clk 0:02:59]}  gxf6 {[%clk 0:02:49]} 11. O-O {[%clk 0:02:57]}  Rg8 {[%clk 0:02:30]} 12. Nd5 {[%clk 0:02:57]}  Bg7 {[%clk 0:02:26]} 13. Qe3 {[%clk 0:02:44]}  e6 {[%clk 0:01:51]} 14. Nf4 {[%clk 0:02:42]}  Qa5 {[%clk 0:01:43]} 15. Rfd1 {[%clk 0:02:34]}  Rd8 {[%clk 0:01:27]} 16. a3 {[%clk 0:02:34]}  Qc5 {[%clk 0:01:26]} 17. Qe2 {[%clk 0:02:20]}  a5 {[%clk 0:01:11]} 18. b3 {[%clk 0:01:55]}  f5 {[%clk 0:01:01]} 19. Nd3 {[%clk 0:01:50]}  Qb6 {[%clk 0:01:00]} 20. exf5 {[%clk 0:01:04]}  Bxa1 {[%clk 0:00:54]} 21. Rxa1 {[%clk 0:01:03]}  e5 {[%clk 0:00:44]} 22. f6 {[%clk 0:00:56]}  Kf8 {[%clk 0:00:31]} 23. b4 {[%clk 0:00:56]}  e4 {[%clk 0:00:25]} 24. b5 {[%clk 0:00:22]}  Rxg2+ {[%clk 0:00:24]} 25. Kf1 {[%clk 0:00:17]}  exf3 {[%clk 0:00:24]} 26. Qe7+ {[%clk 0:00:12]}  Kg8 {[%clk 0:00:24]} 27. bxc6 {[%clk 0:00:11]}  bxc6 {[%clk 0:00:17]} 28. Qe4 {[%clk 0:00:10]}  Rg6 {[%clk 0:00:11]} 29. Qxf3 {[%clk 0:00:10]}  d5 {[%clk 0:00:10]} 30. c5 {[%clk 0:00:10]}  Qb3 {[%clk 0:00:09]} 31. Re1 {[%clk 0:00:10]}  Qc3 {[%clk 0:00:10]} 32. Re3 {[%clk 0:00:03]}  Qxf6 {[%clk 0:00:10]} 33. Qe2 {[%clk 0:00:02]}  Qa1+ {[%clk 0:00:08]} 34. Ne1 {[%clk 0:00:03]}  d4 {[%clk 0:00:08]} 35. Rd3 {[%clk 0:00:02]}  Kf8 {[%clk 0:00:05]} 36. Qf3 {[%clk 0:00:02]}  Re8 {[%clk 0:00:05]} 37. Rd1 {[%clk 0:00:02]}  Qb2 {[%clk 0:00:05]} 38. Nd3 {[%clk 0:00:02]}  Qxa3 {[%clk 0:00:04]} 39. h4 {[%clk 0:00:01]}  Qc3 {[%clk 0:00:05]} 40. h5 {[%clk 0:00:02]}  Rge6 {[%clk 0:00:05]} 41. Kg2 {[%clk 0:00:02]}  Qc4 {[%clk 0:00:05]} 42. Nf4 {[%clk 0:00:02]}  Rf6 {[%clk 0:00:05]} 43. Qg3 {[%clk 0:00:02]}  Re5 {[%clk 0:00:03]} 44. Kh2 {[%clk 0:00:02]}  Rg5 {[%clk 0:00:04]} 45. Qf3 {[%clk 0:00:02]}  Qd5 {[%clk 0:00:03]} 46. Qxd5 {[%clk 0:00:01]}  cxd5 {[%clk 0:00:03]} 47. Nd3 {[%clk 0:00:02]}  Rxh5+ {[%clk 0:00:03]} 48. Kg3 {[%clk 0:00:02]}  Rg5+ {[%clk 0:00:04]} 49. Kh2 {[%clk 0:00:03]}  Rc6 {[%clk 0:00:04]} 50. Rb1 {[%clk 0:00:03]}  Rg4 {[%clk 0:00:03]} 51. f4 {[%clk 0:00:03]}  Rgg6 {[%clk 0:00:03]} 52. Ne5 {[%clk 0:00:02]}  Rxc5 {[%clk 0:00:03]} 53. Rb8+ {[%clk 0:00:03]}  Kg7 {[%clk 0:00:04]} 54. Rb7 {[%clk 0:00:03]}  Rf6 {[%clk 0:00:04]} 55. Kg3 {[%clk 0:00:03]}  Rc2 {[%clk 0:00:04]} 56. Ng4 {[%clk 0:00:03]}  Rg6 {[%clk 0:00:04]} 57. Kf3 {[%clk 0:00:04]}  Rc3+ {[%clk 0:00:05]} 58. Ke2 {[%clk 0:00:04]}  Rxg4 {[%clk 0:00:05]} 59. Kd2 {[%clk 0:00:04]}  Rg2+ {[%clk 0:00:05]} 60. Kd1 {[%clk 0:00:04]}  Rh3 {[%clk 0:00:06]} 0-1


[Site "https://www.chess.com"]